[Event "GER-ch Youth-U12 2024"]
[Site "Willingen"]
[Date "2024.05.22"]
[Round "5"]
[White "Peglau, Paul David"]
[Black "Chua, Daniel James"]
[Result "1-0"]
[ECO "D41"]
[WhiteElo "1806"]
[BlackElo "1751"]
[Annotator "NA RC"]
[PlyCount "191"]
[EventDate "2022.06.05"]
[EventType "swiss"]
[EventRounds "9"]
[EventCountry "GER"]
[SourceTitle "playchess.com"]
[Source "ChessBase"]
[SourceQuality "1"]
[TimeControl "40/4500+30:900+30"]

1. d4 {[%emt 0:00:00]} Nf6 {[%emt 0:00:00]} 2. Nf3 {[%emt 0:00:00]} e6 {[%emt 0:00:00]} 3. g3 {[%emt 0:00:00]} d5 {[%emt 0:00:00]} 4. Bg2 {[%emt 0:00:00]} c5 {[%emt 0:00:00]} 5. c4 {[%emt 0:00:00]} Nc6 {[%emt 0:00:00]} 6. O-O {[%emt 0:01:10]} Be7 {[%emt 0:00:00]} 7. Nc3 {[%emt 0:07:54]} O-O {[%emt 0:00:00]} 8. cxd5 {[%emt 0:03:04]} Nxd5 {[%emt 0:00:00]} 9. Nxd5 {[%emt 0:01:38]} exd5 {[%emt 0:00:00]} 10. dxc5 {[%emt 0:04:33]} Bxc5 {[%emt 0:00:00]} 11. b3 {[%emt 0:06:46]} Re8 {[%emt 0:11:39]} 12. Bb2 {[%emt 0:02:21]} d4 {[%emt 0:04:26]} 13. Rc1 {[%emt 0:08:37]} Bb6 {[%emt 0:06:37]} 14. Qd2 {[%emt 0:06:05]} Bf5 {[%emt 0:06:57]} 15. Rfd1 {[%emt 0:04:55]} Qe7 {[%emt 0:01:22]} 16. Nxd4 {[%emt 0:04:19]} Bxd4 {[%emt 0:00:47]} 17. Bxd4 {[%emt 0:01:30]} Qxe2 {[%emt 0:03:38]} 18. Qg5 {[%emt 0:06:16]} Nxd4 {[%emt 0:00:52]} 19. Rxd4 {[%emt 0:00:13]} Be4 {[%emt 0:15:42]} 20. Bxe4 {[%emt 0:03:39]} Rxe4 {[%emt 0:00:18]} 21. Rd7 {[%emt 0:01:57]} Rae8 {[%emt 0:02:17]} 22. Qf5 {[%emt 0:05:09]} R4e7 {[%emt 0:04:24]} 23. Rcc7 {[%emt 0:02:19]} Rxd7 {[%emt 0:00:33]} 24. Rxd7 {[%emt 0:01:28]} Rf8 {[%emt 0:00:22]} 25. Qa5 {[%emt 0:01:49]} b5 {[%emt 0:11:48]} 26. Qxa7 {[%emt 0:03:10]} Re8 {[%emt 0:00:38]} 27. Rxf7 {[%emt 0:02:34]} Qd1+ {[%emt 0:00:07]} 28. Kg2 {[%emt 0:00:07]} Qd5+ {[%emt 0:00:05]} 29. Rf3 {[%emt 0:00:06]} Rf8 {[%emt 0:00:27]} 30. Qe3 {[%emt 0:00:47]} b4 {[%emt 0:00:11]} 31. g4 {[%emt 0:01:36]} Qa8 {[%emt 0:00:48]} 32. Kg3 {[%emt 0:01:18]} Qb8+ {[%emt 0:02:24]} 33. Kh3 {[%emt 0:00:45]} Re8 {[%emt 0:02:14]} 34. Qf4 {[%emt 0:01:03]} Qb7 {[%emt 0:00:45]} 35. Qc4+ {[%emt 0:02:13]} Kh8 {[%emt 0:00:09]} 36. Rf7 {[%emt 0:01:22]} Qb6 {[%emt 0:00:27]} 37. Qf4 {[%emt 0:00:30]} Qc5 {[%emt 0:00:18]} 38. Rc7 {[%emt 0:00:53]} Qd5 {[%emt 0:00:38]} 39. Kg3 {[%emt 0:02:07]} Rg8 {[%emt 0:00:52]} 40. Rf7 {[%emt 0:00:41]} Qc5 {[%emt 0:05:59]} 41. h4 {[%emt 0:00:00]} Qc3+ {[%emt 0:00:00]} 42. Kg2 {[%emt 0:00:00]} Qc5 {[%emt 0:00:00]} 43. Qc4 {[%emt 0:00:00]} Qb6 {[%emt 0:00:00]} 44. Rf4 {[%emt 0:01:03]} Rb8 {[%emt 0:00:00]} 45. g5 {[%emt 0:02:40]} Qa5 {[%emt 0:00:00]} 46. Qe4 {[%emt 0:02:25]} Qb5 {[%emt 0:00:00]} 47. Rf5 {[%emt 0:03:23]} Qa6 {[%emt 0:00:00]} 48. Qf4 {[%emt 0:01:44]} Qc6+ {[%emt 0:00:00]} 49. Kh2 {[%emt 0:00:29]} Qe8 {[%emt 0:00:00]} 50. Qe5 {[%emt 0:01:02]} Qg8 {[%emt 0:00:00]} 51. h5 {[%emt 0:01:10]} Re8 {[%emt 0:00:00]} 52. Qd5 {[%emt 0:00:53]} Re2 {[%emt 0:00:00]} 53. Qxg8+ {[%emt 0:00:35]} Kxg8 {[%emt 0:00:00]} 54. Kg3 {[%emt 0:00:25]} Rxa2 {[%emt 0:00:00]} 55. Rb5 {[%emt 0:00:10]} Ra3 {[%emt 0:00:27]} 56. Rxb4 {[%emt 0:00:06]} Kf7 {[%emt 0:00:05]} 57. Kf4 {[%emt 0:00:52]} h6 {[%emt 0:00:44]} 58. Rb7+ {[%emt 0:02:56]} Kf8 {[%emt 0:02:00]} 59. gxh6 {[%emt 0:02:11]} gxh6 {[%emt 0:00:02]} 60. b4 {[%emt 0:00:38]} Ra6 {[%emt 0:00:21]} 61. Kf5 {[%emt 0:00:40]} Kg8 {[%emt 0:00:07]} 62. f4 {[%emt 0:00:21]} Rc6 {[%emt 0:00:15]} 63. b5 {[%emt 0:00:42]} Rd6 {[%emt 0:00:05]} 64. b6 {[%emt 0:01:38]} Rc6 {[%emt 0:00:08]} 65. Ke5 {[%emt 0:00:39]} Rc5+ {[%emt 0:00:11]} 66. Kd6 {[%emt 0:00:07]} Rxh5 {[%emt 0:00:12]} 67. Kc7 {[%emt 0:00:32]} Rf5 {[%emt 0:00:04]} 68. Rb8+ {[%emt 0:01:37]} Kg7 {[%emt 0:00:00]} 69. b7 {[%emt 0:00:26]} Rxf4 {[%emt 0:00:05]} 70. Ra8 {[%emt 0:00:36]} Rb4 {[%emt 0:00:04]} 71. b8=Q {[%emt 0:00:15]} Rxb8 {[%emt 0:00:06]} 72. Rxb8 {[%emt 0:00:08]} Kf6 {[%emt 0:00:02]} 73. Rb5 {[%emt 0:00:21]} Kg6 {[%emt 0:00:07]} 74. Kd6 {[%emt 0:00:05]} Kf6 {[%emt 0:00:02]} 75. Ra5 {[%emt 0:00:09]} Kg6 {[%emt 0:00:04]} 76. Ke6 {[%emt 0:00:06]} h5 {[%emt 0:00:04]} 77. Rb5 {[%emt 0:00:07]} h4 {[%emt 0:00:01]} 78. Ra5 {[%emt 0:00:12]} h3 {[%emt 0:00:08]} 79. Ra3 {[%emt 0:00:03]} h2 {[%emt 0:00:03]} 80. Rh3 {[%emt 0:00:05]} h1=B {[%emt 0:00:06]} 81. Rxh1 {[%emt 0:00:08]} Kg5 {[%emt 0:00:03]} 82. Rf1 {[%emt 0:00:06]} Kg4 {[%emt 0:00:03]} 83. Ke5 {[%emt 0:00:05]} Kg3 {[%emt 0:00:03]} 84. Ke4 {[%emt 0:00:06]} Kg2 {[%emt 0:00:06]} 85. Rf8 {[%emt 0:00:03]} Kg3 {[%emt 0:00:03]} 86. Rf7 {[%emt 0:00:03]} Kg2 {[%emt 0:00:05]} 87. Ke3 {[%emt 0:00:04]} Kg1 {[%emt 0:00:05]} 88. Ke2 {[%emt 0:00:02]} Kg2 {[%emt 0:00:03]} 89. Rg7+ {[%emt 0:00:03]} Kh3 {[%emt 0:00:02]} 90. Kf3 {[%emt 0:00:16]} Kh4 {[%emt 0:00:02]} 91. Rg1 {[%emt 0:00:07]} Kh5 {[%emt 0:00:01]} 92. Kf4 {[%emt 0:00:06]} Kh6 {[%emt 0:00:01]} 93. Kf5 {[%emt 0:00:06]} Kh7 {[%emt 0:00:00]} 94. Kf6 {[%emt 0:00:01]} Kh8 {[%emt 0:00:01]} 95. Kf7 {[%emt 0:00:10]} Kh7 {[%emt 0:00:00]} 96. Rh1# {[%emt 0:00:32]} 1-0

[Event "GER-ch Youth-U12 2024"]
[Site "Willingen"]
[Date "2024.05.22"]
[Round "5"]
[White "Vartanian, Roman"]
[Black "Bundan, Edward"]
[Result "1-0"]
[ECO "E16"]
[WhiteElo "1797"]
[BlackElo "1897"]
[Annotator "NA RC"]
[PlyCount "129"]
[EventDate "2022.06.05"]
[EventType "swiss"]
[EventRounds "9"]
[EventCountry "GER"]
[SourceTitle "playchess.com"]
[Source "ChessBase"]
[SourceQuality "1"]
[TimeControl "40/4500+30:900+30"]

1. d4 {[%emt 0:00:00]} Nf6 {[%emt 0:00:00]} 2. c4 {[%emt 0:00:00]} e6 {[%emt 0:00:00]} 3. Nf3 {[%emt 0:00:00]} Bb4+ {[%emt 0:00:00]} 4. Bd2 {[%emt 0:00:00]} a5 {[%emt 0:00:00]} 5. g3 {[%emt 0:00:00]} b6 {[%emt 0:00:00]} 6. Bg2 {[%emt 0:00:00]} Bb7 {[%emt 0:00:00]} 7. O-O {[%emt 0:00:00]} O-O {[%emt 0:00:00]} 8. a3 {[%emt 0:00:00]} Bxd2 {[%emt 0:00:00]} 9. Nbxd2 {[%emt 0:00:00]} d6 {[%emt 0:00:00]} 10. Qc2 {[%emt 0:00:00]} Qe7 {[%emt 0:00:00]} 11. e4 {[%emt 0:00:00] E16: Queen's Indian: 4 g3 Bb7 5 Bg2 Bb4+.} e5 {[%emt 0:00:00]} 12. b4 {[%emt 0:00:00]} axb4 {[%emt 0:00:00]} 13. axb4 {[%emt 0:00:00]} Nbd7 {[%emt 0:00:00]} 14. Rab1 {[%emt 0:01:39]} Rfb8 {[%emt 0:07:09]} 15. Rfc1 {[%emt 0:06:07]} c5 {[%emt 0:04:00]} 16. dxc5 {[%emt 0:03:25]} bxc5 {[%emt 0:01:35]} 17. b5 {[%emt 0:00:13]} Nb6 {[%emt 0:00:43]} 18. Nh4 {[%emt 0:07:53]} g6 {[%emt 0:00:30]} 19. Nf1 {[%emt 0:01:51]} Ra4 {[%emt 0:02:50]} 20. Ne3 {[%emt 0:00:25]} Rba8 {[%emt 0:01:20]} 21. f3 {[%emt 0:10:12]} Ne8 {[%emt 0:03:59]} 22. Bf1 {[%emt 0:03:32]} Ng7 {[%emt 0:02:25]} 23. Nd5 {[%emt 0:00:53]} Bxd5 {[%emt 0:00:44]} 24. cxd5 {[%emt 0:00:37]} Qa7 {[%emt 0:02:06]} 25. Ng2 {[%emt 0:02:46]} f5 {[%emt 0:02:58]} 26. Ne3 {[%emt 0:02:33]} fxe4 {[%emt 0:00:38]} 27. fxe4 {[%emt 0:00:14]} Ra2 {[%emt 0:20:20]} 28. Rb2 {[%emt 0:02:14]} Rxb2 {[%emt 0:00:58]} 29. Qxb2 {[%emt 0:00:49]} Ne8 {[%emt 0:12:10]} 30. Nc4 {[%emt 0:00:41]} Nxc4 {[%emt 0:01:07]} 31. Bxc4 {[%emt 0:02:44]} Qb6 {[%emt 0:01:03]} 32. Ra1 {[%emt 0:00:35]} Rxa1+ {[%emt 0:00:20]} 33. Qxa1 {[%emt 0:00:06]} Nc7 {[%emt 0:00:12]} 34. Kg2 {[%emt 0:00:36]} Kg7 {[%emt 0:00:29]} 35. Qb2 {[%emt 0:01:29]} Ne8 {[%emt 0:00:51]} 36. Bd3 {[%emt 0:00:39]} Nc7 {[%emt 0:00:38]} 37. Qa1 {[%emt 0:00:45]} Kg8 {[%emt 0:00:29]} 38. Bc4 {[%emt 0:00:15]} Kg7 {[%emt 0:00:29]} 39. g4 {[%emt 0:00:39]} Kg8 {[%emt 0:01:59]} 40. g5 {[%emt 0:02:02]} Kg7 {[%emt 0:01:21]} 41. h4 {[%emt 0:15:09]} Kg8 {[%emt 0:15:55]} 42. h5 {[%emt 0:00:21]} gxh5 {[%emt 0:00:39]} 43. Kg3 {[%emt 0:00:36]} Kg7 {[%emt 0:01:41]} 44. Kh4 {[%emt 0:00:27]} Qb8 {[%emt 0:05:00]} 45. Qf1 {[%emt 0:09:49]} Ne8 {[%emt 0:02:49]} 46. Kxh5 {[%emt 0:02:18]} Qb7 {[%emt 0:04:00]} 47. Qf5 {[%emt 0:03:32]} Qa7 {[%emt 0:04:04]} 48. Qe6 {[%emt 0:02:45]} Kf8 {[%emt 0:01:22]} 49. Qh6+ {[%emt 0:11:50]} Kg8 {[%emt 0:02:24]} 50. g6 {[%emt 0:03:16]} Ng7+ {[%emt 0:01:07]} 51. Kh4 {[%emt 0:00:42]} hxg6 {[%emt 0:00:30]} 52. Qxg6 $11 {[%emt 0:00:20]} Qa1 {[%emt 0:00:29]} 53. Kg5 {[%emt 0:00:00]} Qg1+ {[%emt 0:00:00]} 54. Kf6 {[%emt 0:00:00]} Qf2+ {[%emt 0:00:00]} 55. Ke7 {[%emt 0:00:00]} Qf8+ {[%emt 0:00:00]} 56. Kd7 {[%emt 0:00:00]} Qa8 {[%emt 0:00:00]} 57. Qxd6 {[%emt 0:00:00]} Qe8+ {[%emt 0:00:00]} 58. Kc7 {[%emt 0:00:00]} Qf7+ {[%emt 0:00:00]} 59. Qd7 {[%emt 0:00:00]} Ne8+ {[%emt 0:00:00]} 60. Kc8 {[%emt 0:00:00]} Qg6 {[%emt 0:00:00]} 61. Qe6+ {[%emt 0:00:00]} Qxe6+ {[%emt 0:00:00]} 62. dxe6 {[%emt 0:00:00]} Nd6+ {[%emt 0:00:00]} 63. Kd7 {[%emt 0:00:00]} Nxc4 {[%emt 0:00:00]} 64. e7 {[%emt 0:00:00]} Nb6+ {[%emt 0:00:00]} 65. Kd8 {[%emt 0:00:00]} 1-0

[Event "GER-ch Youth-U12 2024"]
[Site "Willingen"]
[Date "2024.05.22"]
[Round "5"]
[White "Fischermann, Simon"]
[Black "Gersemann, Karl"]
[Result "0-1"]
[ECO "C54"]
[WhiteElo "1789"]
[BlackElo "1729"]
[Annotator "NA RC"]
[PlyCount "38"]
[EventDate "2022.06.05"]
[EventType "swiss"]
[EventRounds "9"]
[EventCountry "GER"]
[SourceTitle "playchess.com"]
[Source "ChessBase"]
[SourceQuality "1"]
[TimeControl "40/4500+30:900+30"]

1. e4 {[%emt 0:00:00]} e5 {[%emt 0:00:00]} 2. Nf3 {[%emt 0:00:00]} Nc6 {[%emt 0:00:00]} 3. Bc4 {[%emt 0:00:00]} Bc5 {[%emt 0:00:00]} 4. c3 {[%emt 0:00:00]} Nf6 {[%emt 0:00:00]} 5. d3 {[%emt 0:00:00]} O-O {[%emt 0:00:00]} 6. a4 {[%emt 0:00:00]} a5 {[%emt 0:00:00]} 7. O-O {[%emt 0:00:00]} d5 {[%emt 0:00:00]} 8. exd5 {[%emt 0:00:00]} Nxd5 {[%emt 0:00:00]} 9. h3 {[%emt 0:00:00]} Nb6 {[%emt 0:00:00]} 10. Ba2 {[%emt 0:00:00]} Bf5 {[%emt 0:00:00]} 11. Re1 {[%emt 0:00:00]} Qd6 {[%emt 0:02:23]} 12. Nxe5 {[%emt 0:02:47]} Bxf2+ {[%emt 0:00:14]} 13. Kxf2 {[%emt 0:11:50]} Nxe5 {[%emt 0:00:11]} 14. Kg1 {[%emt 0:00:37]} Nxd3 {[%emt 0:02:13]} 15. Rf1 {[%emt 0:00:29]} Qc5+ {[%emt 0:04:08]} 16. Kh2 {[%emt 0:00:01]} Bg6 {[%emt 0:00:58]} 17. Nd2 {[%emt 0:01:43]} Rad8 {[%emt 0:03:52]} 18. b4 {[%emt 0:01:22]} Qd6+ {[%emt 0:01:37]} 19. Kh1 {[%emt 0:01:00]} Nxc1 {[%emt 0:00:06]} 0-1

[Event "GER-ch Youth-U12 2024"]
[Site "Willingen"]
[Date "2024.05.22"]
[Round "5"]
[White "Meijers, Janis"]
[Black "Doeding, Alexander"]
[Result "1-0"]
[ECO "D20"]
[WhiteElo "1787"]
[BlackElo "1633"]
[Annotator "NA"]
[PlyCount "49"]
[EventDate "2022.06.05"]
[EventType "swiss"]
[EventRounds "9"]
[EventCountry "GER"]
[SourceTitle "playchess.com"]
[Source "ChessBase"]
[SourceQuality "1"]
[TimeControl "40/4500+30:900+30"]

1. d4 {[%emt 0:00:00]} d5 {[%emt 0:00:00]} 2. c4 {[%emt 0:00:00]} dxc4 {[%emt 0:00:00]} 3. e3 {[%emt 0:00:00]} e6 {[%emt 0:00:00]} 4. Bxc4 {[%emt 0:00:00]} a6 {[%emt 0:00:00]} 5. Nc3 {[%emt 0:00:00]} b5 {[%emt 0:00:00]} 6. Bd3 {[%emt 0:00:00]} Bb7 {[%emt 0:00:00]} 7. Nf3 {[%emt 0:00:00]} Nd7 {[%emt 0:00:00]} 8. O-O {[%emt 0:00:00]} c5 {[%emt 0:00:00]} 9. Be4 {[%emt 0:00:00]} Qb6 {[%emt 0:00:00]} 10. a3 {[%emt 0:03:51]} Ngf6 {[%emt 0:00:00]} 11. Bxb7 {[%emt 0:00:08]} Qxb7 {[%emt 0:00:00]} 12. dxc5 {[%emt 0:01:51]} Bxc5 {[%emt 0:00:00]} 13. b4 {[%emt 0:00:08]} Ba7 {[%emt 0:00:04]} 14. Bb2 {[%emt 0:04:14]} O-O {[%emt 0:02:05]} 15. e4 {[%emt 0:14:36]} Nb6 {[%emt 0:07:16]} 16. e5 {[%emt 0:03:15]} Nfd5 {[%emt 0:05:57]} 17. Qd3 {[%emt 0:04:19]} Nxc3 {[%emt 0:02:43]} 18. Bxc3 {[%emt 0:01:32]} h6 {[%emt 0:00:29]} 19. Nd2 {[%emt 0:10:42]} Nd5 {[%emt 0:02:27]} 20. Bb2 {[%emt 0:04:26]} Rfd8 {[%emt 0:02:14]} 21. Qf3 {[%emt 0:03:43]} Rac8 {[%emt 0:16:46]} 22. Ne4 {[%emt 0:02:29]} Ne7 {[%emt 0:10:54]} 23. Nf6+ {[%emt 0:01:14]} gxf6 {[%emt 0:01:50]} 24. Qxb7 {[%emt 0:00:16]} Nc6 {[%emt 0:00:32]} 25. Rac1 {[%emt 0:00:52]} 1-0

[Event "GER-ch Youth-U12 2024"]
[Site "Willingen"]
[Date "2024.05.22"]
[Round "5"]
[White "Noll, Raphael"]
[Black "Grabowski, Joshua"]
[Result "1-0"]
[ECO "C13"]
[WhiteElo "1775"]
[BlackElo "1532"]
[Annotator "NA RC"]
[PlyCount "101"]
[EventDate "2022.06.05"]
[EventType "swiss"]
[EventRounds "9"]
[EventCountry "GER"]
[SourceTitle "playchess.com"]
[Source "ChessBase"]
[SourceQuality "1"]
[TimeControl "40/4500+30:900+30"]

1. e4 {[%emt 0:00:00]} e6 {[%emt 0:00:00]} 2. d4 {[%emt 0:00:00]} d5 {[%emt 0:00:00]} 3. Nc3 {[%emt 0:00:00]} Nf6 {[%emt 0:00:00]} 4. Bg5 {[%emt 0:00:00]} dxe4 {[%emt 0:00:00]} 5. Nxe4 {[%emt 0:00:00]} Be7 {[%emt 0:00:00]} 6. Nxf6+ {[%emt 0:00:00]} Bxf6 {[%emt 0:00:00]} 7. Bxf6 {[%emt 0:00:00]} Qxf6 {[%emt 0:00:00]} 8. Nf3 {[%emt 0:00:00]} Nc6 {[%emt 0:00:00]} 9. Bb5 {[%emt 0:00:00]} Bd7 {[%emt 0:00:00]} 10. O-O {[%emt 0:00:00]} O-O {[%emt 0:00:00]} 11. c3 {[%emt 0:04:11]} Rad8 {[%emt 0:00:00]} 12. Qc2 {[%emt 0:04:15]} a6 {[%emt 0:00:00]} 13. Bd3 {[%emt 0:02:26]} h6 {[%emt 0:01:07]} 14. Rad1 {[%emt 0:03:54]} Rfe8 {[%emt 0:02:16]} 15. Be4 {[%emt 0:06:13]} b5 {[%emt 0:01:55]} 16. Rd2 {[%emt 0:06:40]} e5 {[%emt 0:04:28]} 17. Bxc6 {[%emt 0:03:30]} Bxc6 {[%emt 0:00:23]} 18. Nxe5 {[%emt 0:01:07]} Bxg2 {[%emt 0:01:26]} 19. Kxg2 {[%emt 0:06:38]} Qg5+ {[%emt 0:00:16]} 20. Kh1 {[%emt 0:01:14]} Rxe5 {[%emt 0:00:31]} 21. f4 {[%emt 0:01:22]} Rf5 {[%emt 0:07:25]} 22. fxg5 {[%emt 0:01:01]} Rxf1+ {[%emt 0:00:03]} 23. Kg2 {[%emt 0:00:08]} Re1 {[%emt 0:00:12]} 24. Re2 {[%emt 0:00:37]} Re8 {[%emt 0:00:15]} 25. Rxe8+ {[%emt 0:00:45]} Rxe8 {[%emt 0:00:06]} 26. Kf2 {[%emt 0:00:10]} hxg5 {[%emt 0:00:08]} 27. Qf5 {[%emt 0:01:06]} Re6 {[%emt 0:00:23]} 28. Qc5 {[%emt 0:00:52]} c6 {[%emt 0:00:15]} 29. Qb6 {[%emt 0:01:10]} Rh6 {[%emt 0:00:15]} 30. Kg3 {[%emt 0:00:51]} g4 {[%emt 0:00:21]} 31. Qxa6 {[%emt 0:00:57]} Rh3+ {[%emt 0:00:13]} 32. Kg2 {[%emt 0:01:11]} Rh6 {[%emt 0:00:22]} 33. c4 {[%emt 0:00:31]} bxc4 {[%emt 0:00:09]} 34. Qxc4 {[%emt 0:00:42]} Kf8 {[%emt 0:00:14]} 35. a4 {[%emt 0:00:25]} Ke8 {[%emt 0:00:07]} 36. a5 {[%emt 0:00:42]} Kd7 {[%emt 0:00:15]} 37. a6 {[%emt 0:01:07]} c5 {[%emt 0:00:10]} 38. a7 {[%emt 0:00:37]} Rh8 {[%emt 0:00:09]} 39. Qd5+ {[%emt 0:00:58]} Kc7 {[%emt 0:00:17]} 40. a8=Q {[%emt 0:00:14]} Rxa8 {[%emt 0:00:01]} 41. Qxa8 {[%emt 0:15:47]} g3 {[%emt 0:15:31]} 42. dxc5 {[%emt 0:00:09]} gxh2 {[%emt 0:00:05]} 43. Qe8 {[%emt 0:00:26]} g5 {[%emt 0:00:08]} 44. b4 {[%emt 0:00:27]} f5 {[%emt 0:00:06]} 45. b5 {[%emt 0:00:13]} f4 {[%emt 0:00:05]} 46. Kxh2 {[%emt 0:00:13]} g4 {[%emt 0:00:05]} 47. Qc6+ {[%emt 0:00:13]} Kb8 {[%emt 0:00:10]} 48. b6 {[%emt 0:00:51]} g3+ {[%emt 0:00:04]} 49. Kh3 {[%emt 0:00:13]} g2 {[%emt 0:00:04]} 50. Qc7+ {[%emt 0:00:08]} Ka8 {[%emt 0:00:01]} 51. Qa7# {[%emt 0:00:11]} 1-0

[Event "GER-ch Youth-U12 2024"]
[Site "Willingen"]
[Date "2024.05.22"]
[Round "5"]
[White "Zimmer, Tim"]
[Black "Moskalenko, Michael"]
[Result "1-0"]
[ECO "B33"]
[WhiteElo "1772"]
[BlackElo "1574"]
[Annotator "NA RC"]
[PlyCount "65"]
[EventDate "2022.06.05"]
[EventType "swiss"]
[EventRounds "9"]
[EventCountry "GER"]
[SourceTitle "playchess.com"]
[Source "ChessBase"]
[SourceQuality "1"]
[TimeControl "40/4500+30:900+30"]

1. e4 {[%emt 0:00:00]} c5 {[%emt 0:00:00]} 2. Nf3 {[%emt 0:00:00]} Nc6 {[%emt 0:00:00]} 3. d4 {[%emt 0:00:00]} cxd4 {[%emt 0:00:00]} 4. Nxd4 {[%emt 0:00:00]} e5 {[%emt 0:00:00]} 5. Nb5 {[%emt 0:00:00]} d6 {[%emt 0:00:00]} 6. N1c3 {[%emt 0:00:00]} a6 {[%emt 0:00:00]} 7. Na3 {[%emt 0:00:00]} b5 {[%emt 0:00:00]} 8. Nd5 {[%emt 0:00:00]} Nf6 {[%emt 0:00:00]} 9. Be3 {[%emt 0:00:00]} Rb8 {[%emt 0:00:00]} 10. f3 {[%emt 0:00:59]} Be7 {[%emt 0:00:00]} 11. Bd3 {[%emt 0:02:48]} Be6 {[%emt 0:00:00]} 12. Nxf6+ {[%emt 0:09:32]} Bxf6 {[%emt 0:00:00]} 13. O-O {[%emt 0:00:52]} O-O {[%emt 0:02:10]} 14. c3 {[%emt 0:04:47]} Bh4 {[%emt 0:14:14]} 15. Nc2 {[%emt 0:07:19]} f5 {[%emt 0:19:19]} 16. exf5 {[%emt 0:03:01]} Bxf5 {[%emt 0:00:57]} 17. Bxf5 {[%emt 0:00:21]} Rxf5 {[%emt 0:00:11]} 18. Qd5+ {[%emt 0:00:41]} Kh8 {[%emt 0:00:36]} 19. Qxc6 {[%emt 0:00:17]} Qf6 {[%emt 0:01:22]} 20. Rad1 {[%emt 0:01:28]} Rd8 {[%emt 0:00:13]} 21. Bb6 {[%emt 0:01:14]} Rf8 {[%emt 0:18:11]} 22. Qxd6 {[%emt 0:05:19]} Qg5 {[%emt 0:01:45]} 23. Be3 {[%emt 0:01:55]} Qh5 {[%emt 0:00:22]} 24. g4 {[%emt 0:01:01]} Qe8 {[%emt 0:01:03]} 25. gxf5 {[%emt 0:00:48]} Rxf5 {[%emt 0:00:24]} 26. Kh1 {[%emt 0:03:23]} Rh5 {[%emt 0:10:17]} 27. Qd7 {[%emt 0:03:46]} Qf8 {[%emt 0:01:00]} 28. Qg4 {[%emt 0:00:32]} Qe8 {[%emt 0:00:32]} 29. Rd7 {[%emt 0:10:26]} Bf6 {[%emt 0:00:20]} 30. Rg1 {[%emt 0:00:27]} g6 {[%emt 0:01:08]} 31. Rgd1 {[%emt 0:00:50]} Rh4 {[%emt 0:01:17]} 32. Qg3 {[%emt 0:00:46]} e4 {[%emt 0:01:24]} 33. Bg5 {[%emt 0:01:24]} 1-0

[Event "GER-ch Youth-U12 2024"]
[Site "Willingen"]
[Date "2024.05.22"]
[Round "5"]
[White "Fadeev, Justin Michael"]
[Black "Vu Hoang Bach"]
[Result "1-0"]
[ECO "B01"]
[WhiteElo "1762"]
[BlackElo "1677"]
[Annotator "NA RC"]
[PlyCount "99"]
[EventDate "2022.06.05"]
[EventType "swiss"]
[EventRounds "9"]
[EventCountry "GER"]
[SourceTitle "playchess.com"]
[Source "ChessBase"]
[SourceQuality "1"]
[TimeControl "40/4500+30:900+30"]

1. e4 {[%emt 0:00:00]} d5 {[%emt 0:00:00]} 2. exd5 {[%emt 0:00:00]} Qxd5 {[%emt 0:00:00]} 3. Nc3 {[%emt 0:00:00]} Qd6 {[%emt 0:00:00]} 4. d4 {[%emt 0:00:00]} Nf6 {[%emt 0:00:00]} 5. Nf3 {[%emt 0:00:00]} Nc6 {[%emt 0:00:00]} 6. Nb5 {[%emt 0:00:00]} Qd8 {[%emt 0:00:00]} 7. d5 {[%emt 0:00:00]} Nb4 {[%emt 0:00:00]} 8. c4 {[%emt 0:00:00]} e6 {[%emt 0:00:00]} 9. a3 {[%emt 0:00:00]} Na6 {[%emt 0:00:00]} 10. Qa4 {[%emt 0:00:00]} c6 {[%emt 0:00:14]} 11. dxc6 {[%emt 0:00:00]} bxc6 {[%emt 0:00:00]} 12. Nc3 {[%emt 0:00:00]} Nc5 {[%emt 0:00:00]} 13. Qc2 {[%emt 0:00:00]} Qc7 {[%emt 0:00:00]} 14. Be2 {[%emt 0:00:00]} Be7 {[%emt 0:00:00]} 15. O-O {[%emt 0:00:00]} O-O {[%emt 0:00:00]} 16. Be3 {[%emt 0:02:56]} e5 {[%emt 0:00:00]} 17. h3 {[%emt 0:07:13]} g6 {[%emt 0:00:00]} 18. Bxc5 {[%emt 0:15:22]} Bxc5 {[%emt 0:00:00]} 19. Bd3 {[%emt 0:00:11]} Nh5 {[%emt 0:00:00]} 20. Rfe1 {[%emt 0:02:41]} Bd4 {[%emt 0:13:15]} 21. c5 {[%emt 0:12:49]} Nf4 {[%emt 0:02:20]} 22. Nxd4 {[%emt 0:01:59]} exd4 {[%emt 0:00:10]} 23. Ne4 {[%emt 0:03:40]} Qd8 {[%emt 0:14:11]} 24. Qd2 {[%emt 0:05:17]} Qh4 {[%emt 0:03:26]} 25. g3 {[%emt 0:19:09]} Nxh3+ {[%emt 0:02:51]} 26. Kg2 {[%emt 0:00:15]} Qd8 {[%emt 0:01:12]} 27. Rh1 {[%emt 0:02:16]} f5 {[%emt 0:01:13]} 28. Bc4+ {[%emt 0:01:17]} Kh8 {[%emt 0:01:21]} 29. Nd6 {[%emt 0:00:44]} Ng5 {[%emt 0:00:24]} 30. Qxd4+ {[%emt 0:00:47]} Qf6 {[%emt 0:00:59]} 31. Qh4 {[%emt 0:03:23]} Kg7 {[%emt 0:02:43]} 32. Qh6+ {[%emt 0:00:32]} Kh8 {[%emt 0:02:13]} 33. Nf7+ {[%emt 0:00:47]} Rxf7 {[%emt 0:00:05]} 34. Bxf7 {[%emt 0:00:12]} Ba6 {[%emt 0:00:14]} 35. Qxg6 {[%emt 0:02:30]} Qxg6 {[%emt 0:01:47]} 36. Bxg6 {[%emt 0:00:05]} Bd3 {[%emt 0:00:04]} 37. Bh5 {[%emt 0:02:32]} Rb8 {[%emt 0:01:24]} 38. b4 {[%emt 0:00:36]} a5 {[%emt 0:00:25]} 39. Rad1 {[%emt 0:03:02]} Be4+ {[%emt 0:00:33]} 40. f3 {[%emt 0:00:06]} Bd5 {[%emt 0:01:00]} 41. Rh4 {[%emt 0:16:48]} axb4 {[%emt 0:15:25]} 42. Rxb4 {[%emt 0:00:00]} Ra8 {[%emt 0:00:00]} 43. Rd3 {[%emt 0:00:00]} Ne6 {[%emt 0:00:00]} 44. Rc3 {[%emt 0:00:00]} Kg7 {[%emt 0:00:00]} 45. Rb7+ {[%emt 0:00:00]} Kf6 {[%emt 0:00:00]} 46. Bf7 {[%emt 0:00:00]} Nf4+ {[%emt 0:00:00]} 47. gxf4 {[%emt 0:00:00]} Bxf7 {[%emt 0:00:00]} 48. Rd7 {[%emt 0:00:00]} Ra6 {[%emt 0:00:00]} 49. Rd6+ {[%emt 0:00:00]} Kg7 {[%emt 0:00:00]} 50. Re3 {[%emt 0:00:00]} 1-0